bitfinex/quotes_ETHUSD_20250708
["timestamp","ask_amount","ask_price","bid_price","bid_amount"]
[1751943014707,0.61,2529.4,2529.1,1.6050908]
[1751943014887,0.64948216,2529.5,2529.2,0.1976]
[1751943015085,0.36894717,2529.4,2529.2,0.1976]
[1751943015293,0.61,2529.6,2529.3,1.7595]
[1751943015696,1.41667491,2529.6,2529.3,1.7595]
[1751943016228,0.73768762,2529.5,2529.3,1.7595]
[1751943016389,0.73768762,2529.4,2529.3,1.7595]
[1751943017222,0.36884381,2529.4,2529.3,1.7595]
[1751943017923,0.36884381,2529.7,2529.3,1.7595]
[1751943018134,0.73210548,2529.6,2529.5,0.1976]
[1751943018303,0.77158764,2529.6,2529.3,1.5619]
[1751943018502,0.36884381,2529.5,2529.3,1.7595]
[1751943018825,0.36884138,2529.4,2529.1,1.6536908]
[1751943019034,0.03948216,2529.4,2529.1,1.8512908]
[1751943019202,0.03948216,2529.4,2529.1,1.6536908]
[1751943019531,0.36881234,2529.3,2529.1,0.0431908]
[1751943019732,3.99330154,2529.2,2529.1,0.0431908]
[1751943020032,4.36211388,2529.2,2529.1,0.0431908]
[1751943020393,11.92976537,2529.2,2529.1,0.0431908]
[1751943020593,11.89028321,2529.2,2529.1,0.0431908]
[1751943020994,13.66966786,2529.2,2529.1,0.0431908]
[1751943021317,11.89028321,2529.2,2529.1,0.0431908]
[1751943022218,11.52147087,2529.2,2529.1,0.0431908]
[1751943023326,12.93696222,2529.2,2529.1,0.0431908]
[1751943025030,13.54696222,2529.2,2529.1,0.0431908]
[1751943025326,12.13147087,2529.2,2529.1,0.0431908]
[1751943025530,12.50002424,2529.2,2529.1,0.0431908]
[1751943025929,6.51157275,2529.2,2529.1,0.0431908]
[1751943026129,4.97185491,2529.2,2529.1,0.0431908]
[1751943026627,5.33481008,2529.2,2529.1,0.0431908]
[1751943026832,11.32326157,2529.2,2529.1,0.0431908]
[1751943027128,11.28377941,2529.2,2529.1,0.0431908]
[1751943030906,12.69841656,2529.2,2529.1,0.0431908]
[1751943031301,12.69841656,2529.2,2528.6,0.0431908]
[1751943031302,3.95460117,2528.7,2528.6,0.0431908]
[1751943031507,8.56394343,2528.7,2528.6,0.0431908]
[1751943031734,0.97740978,2528.7,2528.6,0.0431908]
[1751943032037,0.97745851,2528.7,2528.6,0.0431908]
[1751943032236,0.36845851,2528.7,2528.6,0.0431908]
[1751943032413,0.61,2528.7,2528.6,0.0431908]
[1751943032734,0.97845851,2528.7,2528.6,0.0431908]
[1751943033121,0.36845851,2528.7,2528.6,0.0431908]
[1751943033328,1.21554067,2528.7,2528.6,0.0431908]
[1751943033539,1.21542976,2528.7,2528.6,0.0431908]
[1751943034530,0.5659476,2528.7,2528.6,1.5561908]
[1751943034743,1.5941,2529.2,2528.6,1.5561908]
[1751943034744,0.1976,2528.9,2528.6,1.5561908]
[1751943034908,0.61,2528.8,2528.6,1.5561908]
[1751943036808,0.1976,2528.9,2528.6,1.5561908]
[1751943037618,0.61,2529.1,2528.6,1.59573837]
[1751943037943,0.84708216,2529.2,2528.8,1.6564]
[1751943038140,0.36855869,2529.1,2528.8,1.6564]
[1751943040250,0.36855869,2529.0,2528.8,1.6564]
[1751943040417,0.84708216,2529.2,2528.8,1.6564]
[1751943040617,0.36909895,2529.1,2528.8,1.6564]
[1751943040815,0.36909895,2529.0,2528.8,1.6564]
[1751943041010,0.1976,2529.4,2529.0,0.1976]
[1751943041211,2.02678033,2529.6,2529.1,1.69593975]
[1751943041453,1.78604926,2529.5,2529.3,0.1976]
[1751943041740,1.41778033,2529.6,2529.3,0.1976]
[1751943041993,0.36929502,2529.5,2529.3,0.1976]
[1751943042154,0.36929502,2529.4,2529.3,0.1976]
[1751943042518,1.41778033,2529.6,2529.3,0.1976]
[1751943042715,0.36922933,2529.5,2529.3,0.1976]
[1751943043044,0.36922933,2529.5,2528.7,1.6564]
[1751943043045,0.03948216,2529.4,2528.7,1.6564]
[1751943043245,0.60631149,2529.4,2528.9,0.1976]
[1751943043410,0.23708216,2529.4,2528.9,0.1976]
[1751943044249,4.19060375,2529.4,2528.9,0.1976]
[1751943044645,0.36905024,2529.3,2528.9,0.1976]
[1751943044850,0.03948216,2529.2,2528.9,0.1976]
[1751943045250,0.03948216,2529.3,2528.9,0.1976]
[1751943054965,0.36880003,2529.2,2528.9,0.1976]
[1751943055191,0.03948216,2529.1,2528.9,0.1976]
[1751943055589,0.03948216,2529.3,2528.9,0.1976]
[1751943055894,0.36884682,2529.2,2528.9,0.1976]
[1751943056055,0.03948216,2529.1,2528.9,0.1976]
[1751943056463,0.03948216,2529.3,2528.9,0.1976]
[1751943056682,0.36884007,2529.2,2528.9,0.1976]
[1751943056855,0.03948216,2529.1,2528.9,0.1976]
[1751943057369,0.03948216,2529.3,2528.9,0.1976]
[1751943057548,0.36880853,2529.2,2528.9,0.1996]
[1751943057750,0.03948216,2529.1,2528.9,0.1996]
[1751943058280,1.60408216,2529.2,2528.9,0.1996]
[1751943058980,7.55305149,2529.0,2528.9,0.002]
[1751943059163,2.29547707,2529.0,2528.9,0.002]
[1751943059574,2.29547707,2529.0,2528.6,0.0431908]
[1751943059774,0.3687932,2528.9,2528.6,0.0431908]
[1751943061298,0.03948216,2529.0,2528.6,0.0431908]
[1751943061596,1.5646,2528.8,2528.6,0.0431908]
[1751943061893,0.03948216,2528.7,2528.6,0.0431908]
[1751943062663,0.40826293,2528.7,2528.6,0.0431908]
[1751943063794,0.03948216,2528.7,2528.6,0.0431908]
[1751943064891,1.5646,2528.8,2528.6,0.0431908]
[1751943065475,0.36885331,2528.7,2528.6,0.0431908]
[1751943065981,0.608,2529.1,2528.6,1.5873908]
[1751943066169,0.36888955,2529.0,2528.6,1.5873908]
[1751943066489,0.36888955,2528.9,2528.6,2.14163335]
[1751943066789,0.03948216,2529.1,2528.6,2.14163335]
[1751943067093,0.36892059,2529.0,2528.6,2.14163335]
[1751943067760,0.36892059,2529.0,2528.6,1.5873908]
[1751943068961,0.36892059,2529.0,2528.7,0.1976]
[1751943069459,0.84508216,2529.2,2528.7,0.1976]
[1751943069660,0.36893184,2529.1,2528.7,0.1976]
[1751943069861,0.36893184,2529.0,2528.7,0.1976]
[1751943070087,0.84508216,2529.2,2528.7,0.1976]
[1751943070288,0.36893266,2529.1,2528.7,0.1976]
[1751943070594,0.36893266,2529.0,2528.7,0.1976]
[1751943070893,0.84508216,2529.2,2528.7,0.1976]
[1751943071091,0.36894871,2529.1,2528.7,0.1976]
[1751943071282,0.36894871,2529.0,2528.7,0.1976]
[1751943071594,0.84508216,2529.2,2528.7,0.1976]
[1751943071797,0.36904016,2529.1,2528.7,0.1976]
[1751943071967,0.36904016,2529.0,2528.7,0.1976]
[1751943072290,0.84508216,2529.2,2528.7,0.1976]
[1751943072492,0.36907731,2529.1,2528.7,0.1976]
[1751943072694,0.001,2529.3,2529.1,0.1976]
[1751943072867,0.36909038,2529.2,2529.1,0.1976]
[1751943073191,0.001,2529.3,2529.1,1.3874]
[1751943073394,0.001,2529.3,2529.1,1.585]
[1751943073758,0.37013292,2529.3,2529.1,1.585]
[1751943073963,0.001,2529.3,2529.1,1.585]
[1751943076078,0.001,2529.3,2528.8,1.2657]
[1751943076305,0.001,2529.3,2528.9,0.1976]
[1751943076306,0.40963151,2529.3,2528.9,0.1976]
[1751943076488,0.40963151,2529.3,2528.9,0.03954288]
[1751943076489,0.001,2529.3,2528.9,0.03954288]
[1751943076799,0.001,2529.3,2529.0,0.1976]
[1751943077008,0.37013764,2529.3,2529.0,0.1976]
[1751943077196,0.001,2529.3,2529.0,0.1976]
[1751943077591,0.37012806,2529.3,2529.0,0.1976]
[1751943077789,0.001,2529.3,2529.1,1.3783]
[1751943077968,0.001,2529.3,2529.2,0.1976]
[1751943080295,0.001,2529.3,2529.1,1.41783975]
[1751943081888,0.001,2529.3,2529.1,7.40629124]
[1751943082088,0.001,2529.3,2529.2,0.74082912]
[1751943084206,0.001,2529.3,2529.1,1.3783]
[1751943085706,0.001,2529.3,2529.0,0.002]
[1751943086107,1.3115,2529.2,2529.0,0.002]
[1751943087283,0.04048216,2529.3,2529.0,0.002]
[1751943088110,0.001,2529.3,2529.0,0.002]
[1751943090290,0.001,2529.3,2529.0,0.1996]
[1751943093803,0.001,2529.3,2529.0,1.74570574]
[1751943093998,0.001,2529.3,2529.0,1.54810574]
[1751943094225,0.001,2529.3,2529.2,0.1976]
[1751943097735,0.001,2529.3,2529.2,1.5734]
[1751943106742,0.001,2529.3,2529.2,5.52721938]
[1751943106929,0.001,2529.3,2529.2,6.89419704]
[1751943108348,0.001,2529.3,2529.2,12.92218672]
[1751943108517,0.001,2529.3,2529.2,12.88264853]
[1751943109035,0.001,2529.3,2529.2,6.89419704]
[1751943109336,0.001,2529.3,2529.2,6.93373523]
[1751943109854,0.001,2529.3,2529.2,2.94037766]
[1751943110828,0.001,2529.3,2529.2,6.89419704]
[1751943112528,0.001,2529.3,2529.2,7.49919704]
[1751943112845,0.001,2529.3,2529.2,3.54537766]
[1751943113037,0.001,2529.3,2529.2,2.94037766]
[1751943113242,0.001,2529.3,2529.2,2.1784]
[1751943113958,0.001,2529.3,2529.2,6.17175757]
[1751943114447,0.001,2529.3,2529.2,16.68221938]
[1751943114648,0.001,2529.3,2529.2,22.67067087]
[1751943115254,0.001,2529.3,2529.2,12.67067087]
[1751943115416,0.001,2529.3,2529.2,14.48794297]
[1751943118333,0.001,2529.3,2529.2,24.48794297]
[1751943129533,0.001,2529.3,2529.2,23.88294297]
[1751943129872,0.001,2529.3,2529.2,25.97594297]
[1751943133980,0.001,2529.6,2529.5,5.85165046]
[1751943134180,0.001,2529.6,2529.5,23.42561461]
[1751943134379,1e-08,2529.6,2529.5,23.42561461]
[1751943134551,1e-08,2529.6,2529.5,23.62321461]
[1751943134938,1e-08,2529.6,2529.5,23.92247128]
[1751943137574,88.0,2530.0,2529.9,3.9527254]
[1751943137745,88.0,2530.0,2529.9,22.21834943]
[1751943138069,88.0,2530.0,2529.9,22.41594943]
[1751943138383,59.92433076,2530.0,2529.9,22.96594943]
[1751943140277,59.92433076,2530.0,2529.9,24.44994943]
[1751943142576,59.92433076,2530.0,2529.9,17.18359794]
[1751943142878,59.92433076,2530.0,2529.9,16.2383254]
[1751943143253,59.92433076,2530.0,2529.9,2.2856]
[1751943143455,61.23723076,2530.0,2529.9,0.1976]
[1751943143655,61.23723076,2530.0,2529.9,0.8016]
[1751943146652,61.23823076,2530.0,2529.9,0.8016]
[1751943147165,61.23823076,2530.0,2529.9,4.7543254]
[1751943147360,61.23823076,2530.0,2529.9,0.8016]
[1751943149380,61.23823076,2530.0,2529.9,0.8026]
[1751943155498,61.23823076,2530.0,2529.9,0.1976]
[1751943163509,59.92533076,2530.0,2529.9,4.1503254]
[1751943163712,59.92533076,2530.0,2529.9,4.70379098]
[1751943164018,59.92533076,2530.0,2529.9,11.88576972]
[1751943164199,59.92533076,2530.0,2529.9,13.19104247]
[1751943164507,59.92533076,2530.0,2529.9,23.19104247]
[1751943168692,59.92533076,2530.0,2529.9,23.19304247]
[1751943168883,59.92533076,2530.0,2529.9,24.67604247]
[1751943170525,59.92533076,2530.0,2529.9,18.68759098]
[1751943171000,59.92533076,2530.0,2529.9,1.35706558]
[1751943171208,61.18573076,2530.0,2529.9,0.1996]
[1751943171397,61.18573076,2530.0,2529.9,0.8036]
[1751943173785,59.92533076,2530.0,2529.9,0.8036]
[1751943176786,59.92533076,2530.0,2529.9,0.1996]
[1751943177150,59.92533076,2530.0,2529.9,0.8036]
[1751943177315,61.27733076,2530.0,2529.9,0.8036]
[1751943183941,59.92533076,2530.0,2529.9,0.8036]
[1751943184499,59.92533076,2530.0,2529.9,5.63121934]
[1751943186526,59.92533076,2530.0,2529.9,6.18121934]
[1751943186726,59.92533076,2530.0,2529.9,12.16967083]
[1751943187238,59.92533076,2530.0,2529.9,1.07449394]
[1751943187533,59.92533076,2530.0,2529.9,5.02721934]
[1751943189636,59.92533076,2530.0,2529.9,11.01567083]
[1751943189933,59.92533076,2530.0,2529.9,22.34507083]
[1751943190308,59.92533076,2530.0,2529.9,22.89507083]
[1751943195722,54.83035762,2530.0,2529.9,22.89507083]
[1751943195944,39.5454382,2530.0,2529.9,22.89507083]
[1751943196152,34.45046506,2530.0,2529.9,22.89507083]
[1751943198336,34.45046506,2530.0,2529.9,18.99361934]
[1751943203636,0.001,2530.4,2530.1,3.95241294]
[1751943203871,0.001,2530.4,2530.3,21.34515203]
[1751943204051,0.001,2530.4,2530.3,21.54195203]
[1751943215685,0.001,2530.4,2530.3,22.09195203]
[1751943215885,0.001,2530.4,2530.3,40.28602904]
[1751943216090,0.001,2530.4,2530.3,37.97881304]
[1751943216386,0.001,2530.4,2530.3,26.13409752]
[1751943216757,0.001,2530.4,2530.3,38.10746352]
[1751943216983,0.001,2530.4,2530.3,29.98149752]
[1751943217764,0.001,2530.4,2530.3,32.06749752]
[1751943217960,0.001,2530.4,2530.3,31.75939352]
[1751943220683,0.001,2530.4,2530.3,31.25939352]
[1751943221289,0.001,2530.4,2530.3,28.80624551]
[1751943223389,0.001,2530.4,2530.3,30.11774551]
[1751943225157,0.001,2530.4,2530.3,30.31357004]
[1751943226293,0.001,2530.4,2530.3,28.12956904]
[1751943226479,0.001,2530.4,2530.3,39.60117004]
[1751943226684,0.001,2530.4,2530.3,37.45517004]
[1751943227695,0.001,2530.4,2530.3,36.40817004]
[1751943229199,0.001,2530.4,2530.3,31.20877004]
[1751943229498,0.001,2530.4,2530.3,28.03174551]
[1751943229674,0.001,2530.4,2530.3,30.11674551]
[1751943231803,0.001,2530.4,2530.3,30.3117026]
[1751943232003,0.001,2530.4,2530.3,35.05087759]
[1751943235128,1e-08,2530.7,2530.6,4.50163202]
[1751943235411,0.0441908,2531.1,2531.0,14.5010075]
[1751943235571,0.0441908,2531.1,2531.0,22.57445899]
[1751943235775,0.0441908,2531.1,2531.0,22.77125899]
[1751943235987,0.0441908,2531.1,2531.0,17.50437688]
[1751943236174,0.0441908,2531.1,2531.0,19.58937688]
[1751943236678,0.0441908,2531.1,2531.0,17.50437688]
[1751943236874,0.0441908,2531.1,2531.0,19.58937688]
[1751943237296,0.0441908,2531.1,2531.0,26.95832837]
[1751943237913,0.0441908,2531.1,2531.0,50.87726137]
[1751943238608,0.0431908,2531.6,2531.4,14.50038318]
[1751943238800,0.0431908,2531.6,2531.4,21.09283467]
[1751943238974,0.0431908,2531.6,2531.4,21.28963467]
[1751943239310,1.4511,2531.8,2531.4,21.28963467]
[1751943239311,0.001,2532.0,2531.9,14.49960306]
[1751943239475,0.001,2532.0,2531.9,25.14484998]
[1751943239900,0.001,2532.0,2531.9,36.77241998]
[1751943240105,0.001,2532.0,2531.9,30.79650198]
[1751943240406,0.001,2532.0,2531.9,26.49554998]
[1751943240578,0.001,2532.0,2531.9,29.36550198]
[1751943240906,0.0441908,2532.2,2532.1,4.4992911]
[1751943241075,1e-08,2532.7,2532.6,4.49851141]
[1751943241413,1e-08,2532.7,2532.6,14.69531141]
[1751943241623,1e-08,2532.7,2532.6,19.24355281]
[1751943241789,1e-08,2532.7,2532.6,17.15855281]
[1751943241984,1e-08,2532.7,2532.6,19.24255281]
[1751943242622,0.01687921,2533.0,2532.8,14.49819962]
[1751943242772,0.01687921,2533.0,2532.8,14.69499962]
[1751943242972,0.01687921,2533.0,2532.8,1.64560488]
[1751943243169,1.4082,2532.9,2532.8,2.2808]
[1751943243394,1.4082,2532.9,2532.8,0.1968]
[1751943243702,1.4082,2532.9,2532.8,0.8008]
[1751943244081,1.4082,2532.9,2532.8,0.1968]
[1751943244392,1.4082,2532.9,2532.8,0.8008]
[1751943244589,1.4082,2532.9,2532.8,0.1968]
[1751943244772,1.4082,2532.9,2532.8,0.8008]
[1751943247212,1.4082,2532.9,2532.8,0.1968]
[1751943247401,1.4082,2532.9,2532.8,0.8008]
[1751943248078,1.4082,2532.9,2532.8,0.1968]
[1751943248279,1.4082,2532.9,2532.8,0.8008]
[1751943250414,1.4082,2532.9,2532.8,0.1968]
[1751943250881,1.4082,2532.9,2532.8,0.8008]
[1751943253812,1.4082,2532.9,2532.8,0.1968]
[1751943254277,1.4082,2532.9,2532.7,0.7998]
[1751943254478,1.4082,2532.9,2532.7,0.1968]
[1751943255916,0.03948216,2532.8,2532.7,0.1968]
[1751943256418,1.5192,2532.8,2532.7,0.1968]
[1751943256818,7.50765149,2532.8,2532.7,0.1968]
[1751943256985,7.50765149,2532.8,2532.5,0.1968]
[1751943256986,1.5192,2532.7,2532.5,0.1968]
[1751943257311,1.55868216,2532.7,2532.5,0.1968]
[1751943257520,1.5192,2532.7,2532.5,0.1968]
[1751943259117,1.55868216,2532.7,2532.5,0.1968]
[1751943259334,1.55868216,2532.7,2532.3,0.603]
[1751943259620,1.55868216,2532.7,2532.4,0.1968]
[1751943260130,1.55868216,2532.7,2532.1,1.482]
[1751943260131,1.6654,2532.5,2532.2,0.603]
[1751943260285,1.6654,2532.3,2532.2,0.7998]
[1751943261318,1.6654,2532.7,2532.2,1.42292435]
[1751943261625,1.6654,2532.7,2532.3,3.94890352]
[1751943261820,1.6654,2532.7,2532.6,0.1968]
[1751943266226,1.6284,2532.6,2532.5,0.1968]
[1751943266414,1.66788216,2532.6,2532.5,0.1968]
[1751943266719,1.6284,2532.6,2532.5,0.1968]
[1751943267025,1.6294,2532.8,2532.5,0.1968]
[1751943267231,1.6294,2532.8,2532.7,0.1968]
[1751943267411,0.001,2532.8,2532.7,0.1968]
[1751943267796,0.001,2532.8,2532.7,4.71504034]
[1751943268192,0.001,2532.8,2532.7,4.75452389]
[1751943268393,0.001,2532.8,2532.7,4.71504034]
[1751943269125,0.001,2532.8,2532.7,1.37068484]
[1751943269500,0.001,2532.8,2532.7,5.31904034]
[1751943270026,0.001,2532.8,2532.7,5.86904034]
[1751943274125,0.001,2532.8,2532.7,0.76668484]
[1751943274310,0.001,2532.8,2532.7,0.7998]
[1751943274495,0.001,2532.8,2532.7,4.7481555]
[1751943274695,0.001,2532.8,2532.7,0.7998]
[1751943275441,0.001,2532.8,2532.7,0.1968]
[1751943275595,0.001,2532.8,2532.7,0.7998]
[1751943276696,0.001,2532.8,2532.7,0.1968]
[1751943276902,1.502,2532.8,2532.7,0.7998]
[1751943278835,1.502,2532.8,2532.7,0.1968]
[1751943298718,7.49779459,2532.8,2532.7,0.1968]
[1751943306622,0.001,2532.8,2532.7,0.1968]
[1751943310581,0.001,2532.8,2532.7,5.6482555]
[1751943311089,0.001,2532.8,2532.7,6.1982555]
[1751943312476,0.001,2532.8,2532.7,6.8012555]
[1751943313083,0.001,2532.8,2532.7,7.87642928]
[1751943322554,0.001,2532.8,2532.7,23.87222387]
[1751943325076,1e-08,2532.8,2532.7,38.28284187]
[1751943325874,1e-08,2532.8,2532.7,17.27342928]
[1751943326265,1e-08,2532.8,2532.7,19.35442928]
[1751943326767,1e-08,2532.8,2532.7,17.27342928]
[1751943327096,1e-08,2532.8,2532.7,22.88882118]
[1751943327594,1e-08,2532.8,2532.7,19.35442928]
[1751943328391,1e-08,2532.8,2532.7,22.88802823]
[1751943329299,1e-08,2532.8,2532.7,20.80702823]
[1751943329474,1e-08,2532.8,2532.7,22.88802823]
[1751943331770,1e-08,2532.8,2532.7,19.35442928]
[1751943334068,1e-08,2532.8,2532.7,17.27342928]
[1751943334281,1e-08,2532.8,2532.7,19.35442928]
[1751943335498,0.00043068,2533.1,2533.0,14.49788787]
[1751943335704,0.00043068,2533.1,2533.0,16.94547804]
[1751943336000,0.00043068,2533.1,2533.0,17.14227804]
[1751943337484,0.00043068,2533.1,2533.0,18.62027804]
[1751943340708,0.00043068,2533.1,2533.0,16.53927804]
[1751943341010,0.00043068,2533.1,2533.0,2.2778]
[1751943342330,0.00043068,2533.1,2533.0,6.22568787]
[1751943342611,0.00043068,2533.1,2533.0,6.81516674]
[1751943342785,0.00043068,2533.1,2533.0,6.77568787]
[1751943342990,0.00043068,2533.1,2533.0,8.84805362]
[1751943345899,0.00043068,2533.1,2533.0,10.42705362]
[1751943348029,0.00043068,2533.1,2533.0,8.84805362]
[1751943348319,0.00043068,2533.1,2533.0,6.77568787]
[1751943350391,0.00043068,2533.1,2533.0,4.69468787]
[1751943350613,0.00043068,2533.1,2533.0,2.8268]
[1751943350816,0.00043068,2533.1,2533.0,0.7468]
[1751943351018,0.00043068,2533.1,2533.0,0.1968]
[1751943351328,0.00043068,2533.1,2533.0,0.7998]
[1751943351935,0.00043068,2533.1,2533.0,0.1968]
[1751943352100,0.00043068,2533.1,2533.0,0.7998]
[1751943356405,0.00043068,2533.1,2533.0,0.7998]
[1751943361240,0.00043068,2533.1,2533.0,0.1968]
[1751943361457,1.61571284,2533.1,2533.0,0.1968]
[1751943361606,1.61571284,2533.1,2533.0,0.7998]
[1751943361805,1.61571284,2533.1,2533.0,0.1968]
[1751943362028,1.61571284,2533.1,2532.6,0.002]
[1751943362226,7.51359459,2532.9,2532.8,0.1968]
[1751943362441,11.46163833,2532.9,2532.8,0.1968]
[1751943362613,1.6655,2532.8,2532.6,0.002]
[1751943362813,7.70077675,2532.7,2532.6,0.002]
[1751943363302,11.64913225,2532.7,2532.6,0.002]
[1751943363503,11.60965009,2532.7,2532.6,0.002]
[1751943366941,7.66129459,2532.7,2532.6,0.002]
[1751943367150,7.70077675,2532.7,2532.6,0.002]
[1751943367612,11.64913225,2532.7,2532.6,0.002]
[1751943367817,11.60965009,2532.7,2532.6,0.002]
[1751943368307,7.66129459,2532.7,2532.6,0.002]
[1751943368507,11.64913225,2532.7,2532.6,0.002]
[1751943368732,11.60965009,2532.7,2532.6,0.002]
[1751943369938,7.66129459,2532.7,2532.6,0.002]
[1751943370136,7.70077675,2532.7,2532.6,0.002]
[1751943373136,1.6655,2532.7,2532.6,0.1988]
[1751943373336,7.63327675,2532.9,2532.6,0.1988]
[1751943373551,0.03948216,2532.8,2532.6,0.1988]
[1751943374344,7.60959459,2532.7,2532.6,0.1988]
[1751943383717,7.60959459,2532.7,2532.6,0.002]
[1751943383918,7.64907675,2532.7,2532.6,0.002]
[1751943392869,8.01950297,2532.7,2532.6,0.002]
[1751943393155,7.98002081,2532.7,2532.6,0.002]
[1751943393384,7.98004291,2532.7,2532.6,0.002]
[1751943395659,6.36624291,2532.7,2532.6,0.002]
[1751943395858,6.40572507,2532.7,2532.6,0.002]
[1751943403690,10.35408057,2532.7,2532.6,0.002]
[1751943403988,7.98394291,2532.7,2532.6,0.002]
[1751943405760,12.12909841,2532.7,2532.6,0.002]
[1751943405957,8.18074291,2532.7,2532.6,0.002]
[1751943408492,12.12909841,2532.7,2532.6,0.002]
[1751943409108,8.18074291,2532.7,2532.6,0.002]
[1751943410812,12.12909841,2532.7,2532.6,0.002]
[1751943411106,8.18074291,2532.7,2532.6,0.002]
[1751943413926,7.81029459,2532.7,2532.6,0.002]
[1751943414118,8.18093109,2532.7,2532.6,0.002]
[1751943414729,12.12928659,2532.7,2532.6,0.002]
[1751943415318,8.18093109,2532.7,2532.6,0.002]
[1751943415735,12.12928659,2532.7,2532.6,0.002]
[1751943415907,8.18093109,2532.7,2532.6,0.002]
[1751943416925,8.18092521,2532.7,2532.6,0.002]
[1751943417750,2.18513062,2532.7,2532.6,0.002]
[1751943418055,0.37063062,2532.7,2532.6,0.002]
[1751943418207,10.602,2533.0,2532.6,0.002]
[1751943418543,0.41007112,2532.9,2532.7,1.5301]
[1751943418840,0.03948216,2532.9,2532.7,1.5301]
[1751943420724,1.46206089,2533.0,2532.7,1.5301]
[1751943421002,0.37049899,2532.9,2532.7,1.5301]
[1751943421229,0.40998115,2532.8,2532.7,1.5301]
[1751943421427,0.40995939,2532.8,2532.6,0.1988]
[1751943421703,0.03948216,2532.8,2532.6,0.1988]
[1751943421924,0.03948216,2532.8,2532.6,0.002]
[1751943422712,5.99579459,2532.7,2532.6,0.002]
[1751943422915,6.36627378,2532.7,2532.6,0.002]
[1751943423550,10.31462928,2532.7,2532.6,0.002]
[1751943423848,6.36627378,2532.7,2532.6,0.002]
[1751943424538,10.31462928,2532.7,2532.6,0.002]
[1751943425046,10.31462875,2532.7,2532.6,0.002]
[1751943430944,11.85121793,2532.7,2532.6,0.002]
[1751943431346,12.17916917,2532.7,2532.6,0.002]
[1751943431530,12.37596917,2532.7,2532.6,0.002]
[1751943432439,13.47049304,2532.7,2532.6,0.002]
[1751943433234,12.04801793,2532.7,2532.6,0.002]
[1751943433870,12.04798666,2532.7,2532.6,0.002]
[1751943435440,12.37593071,2532.7,2532.6,0.002]
[1751943436871,13.79836797,2532.7,2532.6,0.002]
[1751943439537,13.47042392,2532.7,2532.6,0.002]
[1751943440159,13.79900104,2532.7,2532.6,0.002]
[1751943440393,23.79900104,2532.7,2532.6,0.002]
[1751943445004,23.88200104,2532.7,2532.6,0.002]
[1751943445773,23.89469814,2532.7,2532.6,0.002]
[1751943446378,23.89463218,2532.7,2532.6,0.002]
[1751943451388,25.67267875,2532.7,2532.6,0.002]
[1751943452410,23.89463218,2532.7,2532.6,0.002]
[1751943452574,25.67267875,2532.7,2532.6,0.002]
[1751943453081,23.89463218,2532.7,2532.6,0.002]
[1751943460483,23.8946183,2532.7,2532.6,0.002]
[1751943463625,23.89467138,2532.7,2532.6,0.002]
[1751943463933,13.94851141,2532.6,2532.5,0.002]
[1751943464097,13.94851141,2532.6,2532.1,0.002]
[1751943464098,13.94913513,2532.2,2532.1,0.002]
[1751943464297,22.67952454,2532.2,2532.1,0.002]
[1751943472040,24.20252454,2532.2,2532.1,0.002]
[1751943472622,25.98048425,2532.2,2532.1,0.002]
[1751943473021,24.20252454,2532.2,2532.1,0.002]
[1751943474347,25.98048425,2532.2,2532.1,0.002]
[1751943474924,26.53048425,2532.2,2532.1,0.002]
[1751943475426,26.53028457,2532.2,2532.1,0.002]
[1751943475623,24.75232486,2532.2,2532.1,0.002]
[1751943476025,26.53028457,2532.2,2532.1,0.002]
[1751943478835,24.75232486,2532.2,2532.1,0.002]
[1751943480153,24.20232486,2532.2,2532.1,0.002]
[1751943482641,16.08153027,2532.2,2532.1,0.002]
[1751943483367,0.90675788,2532.2,2532.1,1.6254]
[1751943483550,0.56676453,2532.2,2532.1,1.6254]
[1751943485052,0.60624669,2532.2,2532.1,1.6254]
[1751943487647,0.56676453,2532.2,2532.1,1.6254]
[1751943487852,0.1968,2532.2,2532.1,1.6254]
[1751943488550,0.03948216,2532.2,2532.1,1.6254]
[1751943488749,0.03948216,2532.2,2532.1,1.8222]
[1751943488956,10.03948216,2532.4,2532.1,1.8222]
[1751943489273,10.0,2532.4,2532.1,1.8222]
[1751943489573,0.03948216,2532.3,2532.1,1.8222]
[1751943490580,3.98846175,2532.3,2532.1,1.8222]
[1751943492059,0.03948216,2532.3,2532.1,1.8222]
[1751943492568,3.94913513,2532.2,2532.1,1.6254]
[1751943492755,3.98854778,2532.3,2532.1,1.6254]
[1751943494800,0.03948216,2532.3,2532.1,1.6254]
[1751943494991,3.98847461,2532.3,2532.1,1.6254]
[1751943496350,9.94492972,2532.2,2532.1,0.002]
[1751943496586,20.51138332,2532.2,2532.1,0.002]
[1751943498054,20.51139291,2532.2,2532.1,0.002]
[1751943499793,20.84163858,2532.2,2532.1,0.002]
[1751943499970,22.26117739,2532.2,2532.1,0.002]
[1751943500859,21.56126853,2532.2,2532.1,0.002]
[1751943501172,22.25328668,2532.2,2532.1,0.002]
[1751943503810,16.25749625,2532.2,2532.1,0.002]
[1751943504296,15.93515956,2532.2,2532.1,0.002]
[1751943505403,16.26034219,2532.2,2532.1,0.002]
[1751943509788,16.26059743,2532.2,2532.1,0.002]
[1751943512308,11.98627967,2532.2,2532.1,1.6023]
[1751943512522,10.36994086,2532.2,2532.1,1.7991]
[1751943518103,14.31907599,2532.2,2532.1,1.7991]
[1751943518412,10.36994086,2532.2,2532.1,1.7991]
[1751943519705,14.31907599,2532.2,2532.1,1.7991]
[1751943519914,10.36994086,2532.2,2532.1,1.7991]
[1751943520810,0.36994086,2532.2,2532.1,1.7991]
[1751943521306,0.64048216,2532.4,2532.1,1.7991]
[1751943521512,0.37009695,2532.3,2532.1,1.7991]
[1751943521707,0.03948216,2532.2,2532.1,1.7991]
[1751943521912,0.001,2532.5,2532.1,1.6023]
[1751943522080,0.001,2532.5,2532.1,1.7991]
[1751943522283,0.37107598,2532.5,2532.1,1.7991]
[1751943522809,0.03948216,2532.4,2532.1,1.7991]
[1751943523690,0.04048216,2532.5,2532.1,1.7991]